fUSD/lending_fUSD_20260529
["ID","MTS","AMOUNT","RATE_DAILY","PERIOD"]
[423336393,1780062662000,-162.08,0.00032,120]
[423336397,1780062662000,-538.33243602,0.00032006,30]
[423336396,1780062662000,-891.529,0.00032,120]
[423336395,1780062662000,-1018.529,0.00032,120]
[423336399,1780062662000,-833.92535152,0.00032026,2]
[423336384,1780062662000,-198.77002765,0.00032,120]
[423336374,1780062662000,-1159.70423566,0.00032,120]
[423336428,1780062662000,-4431.499608,0.00032044,7]
[423336433,1780062662000,-3141.402971,0.00032044,7]
[423336474,1780062662000,-1960.84019594,0.00032058,7]
[423336465,1780062662000,-1442.0927117,0.00032055,7]
[423336471,1780062662000,-397.05087776,0.00032056,30]
[423336470,1780062662000,-200.0,0.00032055,2]
[423336468,1780062662000,-767.20655078,0.00032055,7]
[423336469,1780062662000,-826.43919643,0.00032055,7]
[423336472,1780062662000,-1590.0,0.00032057,3]
[423336467,1780062662000,-955.59889369,0.00032055,7]
[423336476,1780062662000,-1044.18462521,0.00032059,7]
[423336477,1780062662000,-582.36115875,0.00032094,30]
[423336485,1780062662000,-2000.0,0.00032205,2]
[423336478,1780062662000,-590.92,0.00032099,5]
[423336480,1780062662000,-2318.0,0.0003216,3]
[423336475,1780062662000,-765.11324478,0.00032059,7]
[423336487,1780062662000,-2000.0,0.00032205,2]
[423336482,1780062662000,-3549.0,0.00032175,2]
[423336481,1780062662000,-157.36465294,0.00032165,120]
[423336488,1780062662000,-10000.0,0.00032205,2]
[423336486,1780062662000,-10000.0,0.00032205,2]
[423336483,1780062662000,-525.0,0.00032175,2]
[423336484,1780062662000,-1272.0,0.00032175,2]
[423336490,1780062662000,-368.30440275,0.00032222,30]
[423336494,1780062662000,-1590.0,0.00032236,11]
[423336492,1780062662000,-188.44606373,0.0003223,2]
[423336493,1780062662000,-1000.0,0.00032232,7]
[423336491,1780062662000,-150.0,0.00032225,7]
[423336489,1780062662000,-7567.4,0.0003221,5]
[423336430,1780062662000,-923.097563,0.00032044,7]
[423336479,1780062662000,-1590.0,0.0003216,3]
[423336466,1780062662000,-953.19115159,0.00032055,7]
[423336495,1780062662000,-163.0,0.00032236,11]
[423336464,1780062662000,-1859.51294556,0.00032055,7]
[423336473,1780062662000,-1590.0,0.00032057,3]
[423336438,1780062662000,-923.097567,0.00032044,7]
[423336448,1780062662000,-4101.394339,0.00032044,7]
[423336449,1780062662000,-4101.394345,0.00032044,7]
[423336437,1780062662000,-899.662535,0.00032044,7]
[423336439,1780062662000,-899.662535,0.00032044,7]
[423336442,1780062662000,-606.59956,0.00032044,7]
[423336443,1780062662000,-606.59956,0.00032044,7]
[423336440,1780062662000,-3141.402971,0.00032044,7]
[423336445,1780062662000,-606.599561,0.00032044,7]
[423336444,1780062662000,-606.59956,0.00032044,7]
[423336441,1780062662000,-899.662529,0.00032044,7]
[423336446,1780062662000,-4101.394339,0.00032044,7]
[423336447,1780062662000,-4101.394339,0.00032044,7]
[423336434,1780062662000,-899.662535,0.00032044,7]
[423336453,1780062662000,-173.641745,0.00032044,2]
[423336463,1780062662000,-794.07766312,0.00032055,7]
[423336460,1780062662000,-875.23930948,0.00032055,7]
[423336461,1780062662000,-821.66770728,0.00032055,7]
[423336458,1780062662000,-1641.77781035,0.00032055,7]
[423336450,1780062662000,-576.273039,0.00032044,7]
[423336462,1780062662000,-1711.80497459,0.00032055,7]
[423336456,1780062662000,-793.80499158,0.00032055,7]
[423336457,1780062662000,-912.65329426,0.00032055,2]
[423336451,1780062662000,-1350000.0,0.00032044,2]
[423336455,1780062662000,-207.45070791,0.00032054,2]
[423336452,1780062662000,-1413.179127,0.00032044,2]
[423336454,1780062662000,-207.45070791,0.00032054,2]
[423336459,1780062662000,-905.56832911,0.00032055,7]
[423336536,1780062663000,-1590.0,0.00032556,11]
[423336538,1780062663000,-163.0,0.00032556,11]
[423336533,1780062663000,-163.0,0.0003248,11]
[423336535,1780062663000,-3000.0,0.0003253,60]
[423336531,1780062663000,-150.0,0.00032479,7]
[423336534,1780062663000,-7357.34,0.00032525,30]
[423336537,1780062663000,-163.0,0.00032556,11]
[423336527,1780062663000,-901.782338,0.00032329,7]
[423336529,1780062663000,-2318.0,0.0003239,11]
[423336530,1780062663000,-1590.0,0.00032462,11]
[423336532,1780062663000,-163.0,0.0003248,11]
[423336540,1780062663000,-2318.0,0.00032557,11]
[423336545,1780062663000,-212.0,0.00032664,2]
[423336550,1780062663000,-200.0,0.00032735,2]
[423336549,1780062663000,-150.0,0.00032733,7]
[423336544,1780062663000,-150.0,0.00032664,2]
[423336543,1780062663000,-2318.0,0.00032659,11]
[423336542,1780062663000,-152.0,0.00032634,28]
[423336541,1780062663000,-300.0,0.00032625,7]
[423336548,1780062663000,-18935.23521844,0.00032719,2]
[423336546,1780062663000,-1590.0,0.0003271,11]
[423336547,1780062663000,-220.8952609,0.00032719,2]
[423336551,1780062663000,-1094.0377033,0.00032777,2]
[423336561,1780062663000,-1500.0,0.000328,10]
[423336553,1780062663000,-22207.83321406,0.00032777,2]
[423336528,1780062663000,-152.0,0.00032384,16]
[423336555,1780062663000,-280.173334,0.000328,14]
[423336526,1780062663000,-901.782342,0.00032329,7]
[423336505,1780062663000,-910.36122834,0.000323,2]
[423336522,1780062663000,-901.782342,0.00032329,7]
[423336500,1780062663000,-163.0,0.00032237,11]
[423336499,1780062663000,-1590.0,0.00032237,11]
[423336498,1780062663000,-163.0,0.00032236,11]
[423336496,1780062663000,-2318.0,0.00032236,11]
[423336497,1780062663000,-1590.0,0.00032236,11]
[423336501,1780062663000,-152.0,0.00032258,27]
[423336502,1780062663000,-996.0,0.00032294,9]
[423336503,1780062663000,-2318.0,0.000323,11]
[423336504,1780062663000,-6689.40706694,0.000323,120]
[423336511,1780062663000,-901.782342,0.00032329,7]
[423336510,1780062663000,-901.782342,0.00032329,7]
[423336512,1780062663000,-901.782342,0.00032329,7]
[423336506,1780062663000,-1510.970504,0.000323,10]
[423336507,1780062663000,-350.0,0.00032319,7]
[423336509,1780062663000,-901.782342,0.00032329,7]
[423336508,1780062663000,-901.782342,0.00032329,7]
[423336514,1780062663000,-901.782342,0.00032329,7]
[423336515,1780062663000,-901.782342,0.00032329,7]
[423336525,1780062663000,-901.782342,0.00032329,7]
[423336519,1780062663000,-901.782342,0.00032329,7]
[423336513,1780062663000,-901.782342,0.00032329,7]
[423336524,1780062663000,-901.782342,0.00032329,7]
[423336521,1780062663000,-901.782342,0.00032329,7]
[423336517,1780062663000,-901.782342,0.00032329,7]
[423336518,1780062663000,-901.782342,0.00032329,7]
[423336520,1780062663000,-901.782342,0.00032329,7]
[423336516,1780062663000,-901.782342,0.00032329,7]
[423336523,1780062663000,-901.782342,0.00032329,7]
[423336552,1780062663000,-905.6181438,0.00032777,2]
[423336539,1780062663000,-163.0,0.00032556,11]
[423336559,1780062663000,-521.752972,0.000328,14]
[423336597,1780062663000,-700.0,0.00032877,30]
[423336592,1780062663000,-206.96521078,0.00032876,2]
[423336591,1780062663000,-171.734091,0.00032874,14]
[423336589,1780062663000,-405.70641793,0.0003287,120]
[423336590,1780062663000,-171.734091,0.00032874,14]
[423336588,1780062663000,-3578.46899556,0.0003287,7]
[423336593,1780062663000,-177.3987521,0.00032876,30]
[423336595,1780062663000,-700.0,0.00032877,30]
[423336596,1780062663000,-700.0,0.00032877,30]
[423336594,1780062663000,-206.96521078,0.00032876,2]
[423336600,1780062663000,-700.0,0.00032877,30]
[423336599,1780062663000,-700.0,0.00032877,30]
[423336603,1780062663000,-700.0,0.00032877,30]
[423336602,1780062663000,-700.0,0.00032877,30]
[423336601,1780062663000,-700.0,0.00032877,30]
[423336610,1780062663000,-700.0,0.00032877,30]
[423336604,1780062663000,-700.0,0.00032877,30]
[423336605,1780062663000,-700.0,0.00032877,30]
[423336607,1780062663000,-700.0,0.00032877,30]
[423336608,1780062663000,-700.0,0.00032877,30]
[423336606,1780062663000,-700.0,0.00032877,30]
[423336612,1780062663000,-700.0,0.00032877,30]
[423336611,1780062663000,-700.0,0.00032877,30]
[423336613,1780062663000,-700.0,0.00032877,30]
[423336614,1780062663000,-700.0,0.00032877,30]
[423336615,1780062663000,-700.0,0.00032877,30]
[423336554,1780062663000,-275.416666,0.000328,14]
[423336586,1780062663000,-996.0,0.00032848,10]
[423336598,1780062663000,-700.0,0.00032877,30]
[423336609,1780062663000,-700.0,0.00032877,30]
[423336583,1780062663000,-1489.0,0.00032842,30]
[423336587,1780062663000,-1233.40461477,0.00032856,7]
[423336562,1780062663000,-200.0,0.000328,7]
[423336558,1780062663000,-555.59,0.000328,14]
[423336560,1780062663000,-4919.76350059,0.000328,2]
[423336556,1780062663000,-555.59,0.000328,14]
[423336564,1780062663000,-350.0,0.00032814,7]
[423336573,1780062663000,-2763.0,0.00032837,30]
[423336572,1780062663000,-1141.98545966,0.00032837,7]
[423336563,1780062663000,-3000.0,0.00032804,60]
[423336565,1780062663000,-183.3,0.00032821,120]
[423336567,1780062663000,-1011.01769585,0.00032829,7]
[423336566,1780062663000,-927.16274114,0.00032829,7]
[423336568,1780062663000,-1064.12070088,0.00032829,7]
[423336557,1780062663000,-555.59,0.000328,14]
[423336570,1780062663000,-1198.20411435,0.00032829,7]
[423336569,1780062663000,-1118.60171534,0.00032829,7]
[423336578,1780062663000,-417.0,0.00032839,30]
[423336576,1780062663000,-1075.56103205,0.00032838,7]
[423336585,1780062663000,-2729.0,0.00032842,30]
[423336580,1780062663000,-5486.0,0.00032839,30]
[423336577,1780062663000,-2554.0,0.00032839,30]
[423336582,1780062663000,-1177.0,0.00032842,30]
[423336575,1780062663000,-1110.99269434,0.00032838,7]
[423336584,1780062663000,-731.0,0.00032842,30]
[423336579,1780062663000,-912.0,0.00032839,30]
[423336574,1780062663000,-340.0,0.00032837,30]
[423336571,1780062663000,-250.0,0.00032835,30]
[423336581,1780062663000,-838.0,0.00032839,30]
[423336643,1780062664000,-603.98175668,0.00032877,50]
[423336640,1780062664000,-700.0,0.00032877,30]
[423336641,1780062664000,-700.0,0.00032877,30]
[423336642,1780062664000,-481.0,0.00032877,30]
[423336645,1780062664000,-11454.44590875,0.00032877,30]
[423336646,1780062664000,-60491.88429856,0.00032877,10]
[423336644,1780062664000,-4019.47588848,0.00032877,10]
[423336649,1780062664000,-1000.0,0.00032877,10]
[423336648,1780062664000,-151.000481,0.00032877,7]
[423336647,1780062664000,-1000.0,0.00032877,120]
[423336652,1780062664000,-1000.0,0.00032877,10]
[423336653,1780062664000,-1000.0,0.00032877,10]
[423336654,1780062664000,-1000.0,0.00032877,10]
[423336651,1780062664000,-1000.0,0.00032877,10]
[423336666,1780062664000,-1000.0,0.00032877,10]
[423336656,1780062664000,-1000.0,0.00032877,10]
[423336655,1780062664000,-1000.0,0.00032877,10]
[423336637,1780062664000,-700.0,0.00032877,30]
[423336658,1780062664000,-1000.0,0.00032877,10]
[423336650,1780062664000,-1000.0,0.00032877,10]
[423336638,1780062664000,-700.0,0.00032877,30]
[423336624,1780062664000,-700.0,0.00032877,30]
[423336639,1780062664000,-700.0,0.00032877,30]
[423336657,1780062664000,-1000.0,0.00032877,10]
[423336616,1780062664000,-700.0,0.00032877,30]
[423336618,1780062664000,-700.0,0.00032877,30]
[423336621,1780062664000,-700.0,0.00032877,30]
[423336617,1780062664000,-700.0,0.00032877,30]
[423336620,1780062664000,-700.0,0.00032877,30]
[423336619,1780062664000,-700.0,0.00032877,30]
[423336622,1780062664000,-700.0,0.00032877,30]
[423336623,1780062664000,-700.0,0.00032877,30]
[423336631,1780062664000,-700.0,0.00032877,30]
[423336632,1780062664000,-700.0,0.00032877,30]
[423336625,1780062664000,-700.0,0.00032877,30]
[423336627,1780062664000,-700.0,0.00032877,30]
[423336626,1780062664000,-700.0,0.00032877,30]
[423336629,1780062664000,-700.0,0.00032877,30]
[423336630,1780062664000,-700.0,0.00032877,30]
[423336628,1780062664000,-700.0,0.00032877,30]
[423336634,1780062664000,-700.0,0.00032877,30]
[423336635,1780062664000,-700.0,0.00032877,30]
[423336636,1780062664000,-700.0,0.00032877,30]
[423336659,1780062664000,-1000.0,0.00032877,10]
[423336633,1780062664000,-700.0,0.00032877,30]
[423336661,1780062664000,-1000.0,0.00032877,10]
[423336683,1780062664000,-10581.108698,0.00032877,2]
[423336681,1780062664000,-151.0,0.00032877,7]
[423336687,1780062664000,-10581.108698,0.00032877,2]
[423336686,1780062664000,-10581.108698,0.00032877,2]
[423336690,1780062664000,-2437.155188,0.00032877,7]
[423336692,1780062664000,-2437.155188,0.00032877,7]
[423336693,1780062664000,-10581.108698,0.00032877,2]
[423336694,1780062664000,-2437.155188,0.00032877,7]
[423336695,1780062664000,-10581.108698,0.00032877,2]
[423336700,1780062664000,-2437.155188,0.00032877,7]
[423336697,1780062664000,-10581.108698,0.00032877,2]
[423336698,1780062664000,-2437.155188,0.00032877,7]
[423336696,1780062664000,-2437.155188,0.00032877,7]
[423336699,1780062664000,-10581.108698,0.00032877,2]
[423336702,1780062664000,-2437.155188,0.00032877,7]
[423336701,1780062664000,-10581.108698,0.00032877,2]
[423336703,1780062664000,-10581.108698,0.00032877,2]
[423336704,1780062664000,-2437.155188,0.00032877,7]
[423336660,1780062664000,-1000.0,0.00032877,10]
[423336705,1780062664000,-10581.108698,0.00032877,2]
[423336685,1780062664000,-10581.108698,0.00032877,2]
[423336691,1780062664000,-10581.108698,0.00032877,2]
[423336684,1780062664000,-10581.108698,0.00032877,2]
[423336662,1780062664000,-1000.0,0.00032877,10]
[423336688,1780062664000,-2437.155188,0.00032877,7]
[423336663,1780062664000,-1000.0,0.00032877,10]
[423336665,1780062664000,-1000.0,0.00032877,10]
[423336664,1780062664000,-1000.0,0.00032877,10]
[423336667,1780062664000,-1000.0,0.00032877,10]
[423336668,1780062664000,-1000.0,0.00032877,10]
[423336670,1780062664000,-151.0,0.00032877,7]
[423336672,1780062664000,-151.0,0.00032877,7]
[423336671,1780062664000,-151.0,0.00032877,7]
[423336669,1780062664000,-1000.0,0.00032877,10]
[423336676,1780062664000,-151.0,0.00032877,7]
[423336673,1780062664000,-151.0,0.00032877,7]
[423336675,1780062664000,-151.0,0.00032877,7]
[423336674,1780062664000,-151.0,0.00032877,7]
[423336677,1780062664000,-151.0,0.00032877,7]
[423336689,1780062664000,-10581.108698,0.00032877,2]
[423336679,1780062664000,-151.0,0.00032877,7]
[423336678,1780062664000,-151.0,0.00032877,7]
[423336682,1780062664000,-1000.0,0.00032877,10]
[423336680,1780062664000,-151.0,0.00032877,7]
[423336719,1780062665000,-2437.155188,0.00032877,7]
[423336721,1780062665000,-10581.108691,0.00032877,2]
[423336723,1780062665000,-276.892695,0.00032877,7]
[423336722,1780062665000,-2437.155188,0.00032877,7]
[423336726,1780062665000,-276.892695,0.00032877,7]
[423336735,1780062665000,-276.892695,0.00032877,7]
[423336728,1780062665000,-276.892695,0.00032877,7]
[423336724,1780062665000,-2437.155188,0.00032877,7]
[423336720,1780062665000,-276.892695,0.00032877,7]
[423336725,1780062665000,-276.892695,0.00032877,7]
[423336714,1780062665000,-276.892695,0.00032877,7]
[423336711,1780062665000,-276.892695,0.00032877,7]
[423336717,1780062665000,-276.892695,0.00032877,7]
[423336716,1780062665000,-2437.155188,0.00032877,7]
[423336715,1780062665000,-10581.108698,0.00032877,2]
[423336713,1780062665000,-2437.155188,0.00032877,7]
[423336707,1780062665000,-10581.108698,0.00032877,2]
[423336710,1780062665000,-2437.155188,0.00032877,7]
[423336708,1780062665000,-2437.155188,0.00032877,7]
[423336709,1780062665000,-10581.108698,0.00032877,2]
[423336706,1780062665000,-2437.155188,0.00032877,7]
[423336712,1780062665000,-10581.108698,0.00032877,2]
[423336730,1780062665000,-2437.155184,0.00032877,7]
[423336718,1780062665000,-10581.108698,0.00032877,2]
[423336734,1780062665000,-276.892695,0.00032877,7]
[423336727,1780062665000,-2437.155188,0.00032877,7]
[423336731,1780062665000,-276.892695,0.00032877,7]
[423336729,1780062665000,-2437.155188,0.00032877,7]
[423336757,1780062665000,-7628.037144,0.00032877,7]
[423336756,1780062665000,-334.864124,0.00032877,7]
[423336755,1780062665000,-212.051983,0.00032877,7]
[423336754,1780062665000,-7628.037144,0.00032877,7]
[423336753,1780062665000,-334.864124,0.00032877,7]
[423336752,1780062665000,-7628.037144,0.00032877,7]
[423336750,1780062665000,-7628.037144,0.00032877,7]
[423336748,1780062665000,-7628.037144,0.00032877,7]
[423336749,1780062665000,-334.864124,0.00032877,7]
[423336747,1780062665000,-7628.037144,0.00032877,7]
[423336742,1780062665000,-276.89270315,0.00032877,7]
[423336751,1780062665000,-334.864124,0.00032877,7]
[423336741,1780062665000,-276.892695,0.00032877,7]
[423336744,1780062665000,-7628.037144,0.00032877,7]
[423336746,1780062665000,-7628.037144,0.00032877,7]
[423336743,1780062665000,-7628.037144,0.00032877,7]
[423336740,1780062665000,-276.892695,0.00032877,7]
[423336739,1780062665000,-276.892695,0.00032877,7]
[423336736,1780062665000,-276.892695,0.00032877,7]
[423336738,1780062665000,-276.892695,0.00032877,7]
[423336737,1780062665000,-276.892695,0.00032877,7]
[423336733,1780062665000,-276.892695,0.00032877,7]
[423336745,1780062665000,-7628.037144,0.00032877,7]
[423336732,1780062665000,-276.892695,0.00032877,7]
[423336797,1780062666000,-334.864124,0.00032877,7]
[423336794,1780062666000,-212.051983,0.00032877,7]
[423336798,1780062666000,-212.051983,0.00032877,7]
[423336799,1780062666000,-334.864114,0.00032877,7]
[423336789,1780062666000,-334.864124,0.00032877,7]
[423336792,1780062666000,-212.051983,0.00032877,7]
[423336790,1780062666000,-212.051983,0.00032877,7]
[423336793,1780062666000,-334.864124,0.00032877,7]
[423336800,1780062666000,-266.973748,0.00032877,7]
[423336795,1780062666000,-334.864124,0.00032877,7]
[423336791,1780062666000,-334.864124,0.00032877,7]
[423336796,1780062666000,-212.051983,0.00032877,7]
[423336809,1780062666000,-284.008587,0.00032877,7]
[423336804,1780062666000,-212.051983,0.00032877,7]
[423336803,1780062666000,-3080.825665,0.00032877,7]
[423336801,1780062666000,-266.973748,0.00032877,7]
[423336802,1780062666000,-266.973748,0.00032877,7]
[423336805,1780062666000,-3080.825665,0.00032877,7]
[423336810,1780062666000,-266.973748,0.00032877,7]
[423336806,1780062666000,-284.008587,0.00032877,7]
[423336807,1780062666000,-266.973748,0.00032877,7]
[423336808,1780062666000,-212.051983,0.00032877,7]
[423336811,1780062666000,-3080.825665,0.00032877,7]
[423336786,1780062666000,-334.864124,0.00032877,7]
[423336813,1780062666000,-2643.042168,0.00032877,7]
[423336823,1780062666000,-266.973748,0.00032877,7]
[423336785,1780062666000,-212.051983,0.00032877,7]
[423336775,1780062666000,-212.051983,0.00032877,7]
[423336783,1780062666000,-334.864124,0.00032877,7]
[423336758,1780062666000,-212.051983,0.00032877,7]
[423336763,1780062666000,-7628.037144,0.00032877,7]
[423336761,1780062666000,-212.051983,0.00032877,7]
[423336762,1780062666000,-334.864124,0.00032877,7]
[423336765,1780062666000,-7628.037144,0.00032877,7]
[423336759,1780062666000,-334.864124,0.00032877,7]
[423336764,1780062666000,-212.051983,0.00032877,7]
[423336760,1780062666000,-7628.037144,0.00032877,7]
[423336766,1780062666000,-334.864124,0.00032877,7]
[423336768,1780062666000,-7628.037144,0.00032877,7]
[423336767,1780062666000,-212.051983,0.00032877,7]
[423336769,1780062666000,-334.864124,0.00032877,7]
[423336787,1780062666000,-7628.03715,0.00032877,7]
[423336770,1780062666000,-212.051983,0.00032877,7]
[423336773,1780062666000,-212.051983,0.00032877,7]
[423336771,1780062666000,-334.864124,0.00032877,7]
[423336772,1780062666000,-7628.037144,0.00032877,7]
[423336776,1780062666000,-7628.037144,0.00032877,7]
[423336781,1780062666000,-7628.037144,0.00032877,7]
[423336777,1780062666000,-334.864124,0.00032877,7]
[423336779,1780062666000,-212.051983,0.00032877,7]
[423336780,1780062666000,-334.864124,0.00032877,7]
[423336778,1780062666000,-7628.037144,0.00032877,7]
[423336782,1780062666000,-212.051983,0.00032877,7]
[423336788,1780062666000,-212.051983,0.00032877,7]
[423336784,1780062666000,-7628.037144,0.00032877,7]
[423336774,1780062666000,-334.864124,0.00032877,7]
[423336814,1780062666000,-284.008587,0.00032877,7]
[423336828,1780062666000,-284.008587,0.00032877,7]
[423336815,1780062666000,-266.973748,0.00032877,7]
[423336848,1780062666000,-3080.825665,0.00032877,7]
[423336849,1780062666000,-266.973748,0.00032877,7]
[423336858,1780062666000,-2643.042168,0.00032877,7]
[423336852,1780062666000,-3080.825665,0.00032877,7]
[423336854,1780062666000,-266.973748,0.00032877,7]
[423336851,1780062666000,-2643.042168,0.00032877,7]
[423336850,1780062666000,-284.008587,0.00032877,7]
[423336855,1780062666000,-2643.042168,0.00032877,7]
[423336857,1780062666000,-266.973748,0.00032877,7]
[423336856,1780062666000,-284.008587,0.00032877,7]
[423336853,1780062666000,-284.008587,0.00032877,7]
[423336868,1780062666000,-3080.825665,0.00032877,7]
[423336870,1780062666000,-2643.042168,0.00032877,7]
[423336861,1780062666000,-266.973748,0.00032877,7]
[423336859,1780062666000,-284.008587,0.00032877,7]
[423336869,1780062666000,-266.973753,0.00032877,7]
[423336860,1780062666000,-3080.825665,0.00032877,7]
[423336862,1780062666000,-2643.042168,0.00032877,7]
[423336865,1780062666000,-266.973748,0.00032877,7]
[423336867,1780062666000,-284.008587,0.00032877,7]
[423336863,1780062666000,-284.008587,0.00032877,7]
[423336864,1780062666000,-3080.825665,0.00032877,7]
[423336866,1780062666000,-2643.042168,0.00032877,7]
[423336872,1780062666000,-2643.042168,0.00032877,7]
[423336812,1780062666000,-212.051985,0.00032877,7]
[423336847,1780062666000,-2643.042168,0.00032877,7]
[423336843,1780062666000,-2643.042168,0.00032877,7]
[423336871,1780062666000,-3080.825665,0.00032877,7]
[423336842,1780062666000,-3080.825665,0.00032877,7]
[423336844,1780062666000,-284.008587,0.00032877,7]
[423336817,1780062666000,-2643.042168,0.00032877,7]
[423336818,1780062666000,-284.008587,0.00032877,7]
[423336819,1780062666000,-3080.825665,0.00032877,7]
[423336821,1780062666000,-284.008587,0.00032877,7]
[423336816,1780062666000,-3080.825665,0.00032877,7]
[423336822,1780062666000,-2643.042168,0.00032877,7]
[423336825,1780062666000,-2643.042168,0.00032877,7]
[423336835,1780062666000,-2643.042168,0.00032877,7]
[423336824,1780062666000,-3080.825665,0.00032877,7]
[423336826,1780062666000,-266.973748,0.00032877,7]
[423336827,1780062666000,-3080.825665,0.00032877,7]
[423336830,1780062666000,-3080.825665,0.00032877,7]
[423336820,1780062666000,-266.973748,0.00032877,7]
[423336829,1780062666000,-266.973748,0.00032877,7]
[423336833,1780062666000,-3080.825665,0.00032877,7]
[423336841,1780062666000,-266.973748,0.00032877,7]
[423336839,1780062666000,-2643.042168,0.00032877,7]
[423336838,1780062666000,-266.973748,0.00032877,7]
[423336836,1780062666000,-3080.825665,0.00032877,7]
[423336840,1780062666000,-284.008587,0.00032877,7]
[423336845,1780062666000,-266.973748,0.00032877,7]
[423336837,1780062666000,-284.008587,0.00032877,7]
[423336831,1780062666000,-2643.042168,0.00032877,7]
[423336832,1780062666000,-266.973748,0.00032877,7]
[423336834,1780062666000,-284.008587,0.00032877,7]
[423336846,1780062666000,-3080.825665,0.00032877,7]
[423336905,1780062667000,-362.590743,0.00032877,7]
[423336907,1780062667000,-362.590743,0.00032877,7]
[423336906,1780062667000,-404.400508,0.00032877,7]
[423336911,1780062667000,-362.590743,0.00032877,7]
[423336899,1780062667000,-362.590743,0.00032877,7]
[423336913,1780062667000,-362.590743,0.00032877,7]
[423336912,1780062667000,-2190.158846,0.00032877,7]
[423336910,1780062667000,-362.590743,0.00032877,7]
[423336904,1780062667000,-404.400508,0.00032877,7]
[423336903,1780062667000,-362.590743,0.00032877,7]
[423336909,1780062667000,-404.400508,0.00032877,7]
[423336919,1780062667000,-2190.158846,0.00032877,7]
[423336914,1780062667000,-362.590743,0.00032877,7]
[423336917,1780062667000,-2190.158846,0.00032877,7]
[423336916,1780062667000,-362.590745,0.00032877,7]
[423336918,1780062667000,-2190.158846,0.00032877,7]
[423336920,1780062667000,-2190.158846,0.00032877,7]
[423336921,1780062667000,-2190.158846,0.00032877,7]
[423336922,1780062667000,-2190.158846,0.00032877,7]
[423336915,1780062667000,-2190.158846,0.00032877,7]
[423336923,1780062667000,-2190.158846,0.00032877,7]
[423336924,1780062667000,-404.400508,0.00032877,7]
[423336925,1780062667000,-2190.158846,0.00032877,7]
[423336902,1780062667000,-404.400508,0.00032877,7]
[423336908,1780062667000,-362.590743,0.00032877,7]
[423336896,1780062667000,-362.590743,0.00032877,7]
[423336886,1780062667000,-362.590743,0.00032877,7]
[423336901,1780062667000,-362.590743,0.00032877,7]
[423336926,1780062667000,-404.400508,0.00032877,7]
[423336876,1780062667000,-284.008587,0.00032877,7]
[423336873,1780062667000,-284.008587,0.00032877,7]
[423336874,1780062667000,-3080.825665,0.00032877,7]
[423336878,1780062667000,-2643.042168,0.00032877,7]
[423336879,1780062667000,-284.008587,0.00032877,7]
[423336877,1780062667000,-3080.825667,0.00032877,7]
[423336875,1780062667000,-2643.042168,0.00032877,7]
[423336880,1780062667000,-2643.042168,0.00032877,7]
[423336881,1780062667000,-284.008579,0.00032877,7]
[423336883,1780062667000,-362.590743,0.00032877,7]
[423336882,1780062667000,-2643.042159,0.00032877,7]
[423336885,1780062667000,-404.400508,0.00032877,7]
[423336884,1780062667000,-362.590743,0.00032877,7]
[423336890,1780062667000,-362.590743,0.00032877,7]
[423336891,1780062667000,-404.400508,0.00032877,7]
[423336887,1780062667000,-404.400508,0.00032877,7]
[423336888,1780062667000,-362.590743,0.00032877,7]
[423336889,1780062667000,-404.400508,0.00032877,7]
[423336892,1780062667000,-362.590743,0.00032877,7]
[423336895,1780062667000,-404.400508,0.00032877,7]
[423336897,1780062667000,-404.400508,0.00032877,7]
[423336900,1780062667000,-404.400508,0.00032877,7]
[423336893,1780062667000,-404.400508,0.00032877,7]
[423336898,1780062667000,-362.590743,0.00032877,7]